bitfinex/quotes_SOLUSD_20250803
["timestamp","ask_amount","ask_price","bid_price","bid_amount"]
[1754181865148,0.69,159.27,159.23,63.32385085]
[1754181865543,0.69,159.26,159.23,49.94]
[1754181865955,0.69,159.26,159.23,63.32385085]
[1754181866153,14.07385085,159.3,159.25,13.38385085]
[1754181866373,13.38385085,159.28,159.26,49.92]
[1754181866545,14.07385085,159.27,159.26,49.92]
[1754181866744,0.69,159.27,159.26,49.92]
[1754181866944,9.38194188,159.27,159.26,49.92]
[1754181867489,0.69,159.27,159.26,49.92]
[1754181867775,0.69,159.3,159.26,58.61194188]
[1754181867986,0.69,159.3,159.27,0.62786463]
[1754181868351,0.03,159.31,159.27,9.31980651]
[1754181868750,0.69,159.3,159.27,9.31980651]
[1754181869353,0.03,159.31,159.27,9.31980651]
[1754181869869,0.72,159.31,159.27,9.31980651]
[1754181870489,0.03,159.31,159.3,8.69194188]
[1754181870693,0.03,159.31,159.3,49.9]
[1754181870896,0.03,159.31,159.3,58.59194188]
[1754181871783,0.03,159.31,159.3,49.9]
[1754181872094,0.03,159.31,159.3,58.59194188]
[1754181874766,0.03,159.31,159.3,50.52774639]
[1754181875269,0.73,159.31,159.3,49.9]
[1754181875569,0.03,159.31,159.3,50.52774639]
[1754181875774,0.03,159.31,159.3,59.21968827]
[1754181876299,0.03,159.31,159.3,50.52774639]
[1754181876476,0.73,159.31,159.3,49.9]
[1754181876793,0.03,159.31,159.3,59.21968827]
[1754181877572,0.03,159.31,159.3,49.9]
[1754181877803,0.73,159.31,159.3,49.9]
[1754181878097,0.73,159.31,159.28,9.31976709]
[1754181878301,0.03,159.31,159.3,49.86]
[1754181878619,8.72194188,159.31,159.3,49.86]
[1754181878975,9.42194188,159.31,159.3,49.86]
[1754181879596,0.73,159.31,159.3,49.86]
[1754181879787,0.03,159.31,159.3,49.86]
[1754181880381,0.03,159.31,159.3,58.55194188]
[1754181881001,0.03,159.31,159.3,49.86]
[1754181881301,9.42194188,159.31,159.23,8.69194188]
[1754181881502,8.69194188,159.26,159.24,49.84]
[1754181881748,9.39194188,159.25,159.24,49.84]
[1754181882414,9.39194188,159.25,159.19,3.21155904]
[1754181882591,8.69194188,159.21,159.2,49.84]
[1754181882794,9.39194188,159.21,159.2,49.84]
[1754181883382,9.39194188,159.21,159.16,0.06]
[1754181883723,8.69194188,159.19,159.17,49.82]
[1754181884021,9.39194188,159.18,159.17,49.82]
[1754181884379,9.39194188,159.18,159.16,0.06]
[1754181884582,8.69194188,159.17,159.16,0.06]
[1754181884787,9.39194188,159.17,159.16,49.9]
[1754181887521,18.08388376,159.17,159.16,0.06]
[1754181887720,18.08388376,159.17,159.07,49.84]
[1754181888050,8.69194188,159.08,159.07,49.84]
[1754181888208,9.39194188,159.08,159.07,49.84]
[1754181888817,8.69194188,159.08,159.07,49.84]
[1754181889017,9.39194188,159.08,159.07,49.84]
[1754181889253,0.7,159.08,159.07,49.84]
[1754181889430,9.39194188,159.08,159.07,49.84]
[1754181890439,8.69194188,159.11,159.07,50.53]
[1754181890603,8.69194188,159.08,159.07,49.84]
[1754181891240,9.39194188,159.08,159.07,49.84]
[1754181891411,8.69194188,159.1,159.07,49.84]
[1754181891611,0.7,159.17,159.09,8.69194188]
[1754181891814,8.69194188,159.18,159.12,8.69194188]
[1754181892011,0.7,159.23,159.15,8.69194188]
[1754181892230,8.69194188,159.21,159.16,8.69194188]
[1754181892429,8.69194188,159.21,159.17,50.51]
[1754181892742,8.69194188,159.22,159.17,59.20194188]
[1754181892937,13.12292243,159.2,159.17,49.82]
[1754181893119,13.12292243,159.19,159.18,49.82]
[1754181893534,13.12292243,159.23,159.18,63.63292243]
[1754181893933,13.12292243,159.21,159.18,49.82]
[1754181894252,13.12292243,159.2,159.18,49.82]
[1754181894420,13.12292243,159.19,159.18,49.82]
[1754181895215,13.82292243,159.19,159.18,49.82]
[1754181897211,0.7,159.19,159.18,49.82]
[1754181897412,13.82292243,159.19,159.18,49.82]
[1754181897833,13.12292243,159.19,159.18,49.82]
[1754181898221,13.82292243,159.19,159.18,49.82]
[1754181898639,13.12292243,159.19,159.18,49.82]
[1754181899018,13.12292243,159.2,159.18,49.82]
[1754181899213,13.12292243,159.21,159.18,49.82]
[1754181899635,13.12292243,159.21,159.18,50.51]
[1754181900015,13.12292243,159.22,159.19,0.69]
[1754181900459,13.12292243,159.23,159.19,147.3]
[1754181900669,0.7,159.26,159.19,147.3]
[1754181900670,13.12292243,159.24,159.2,0.69]
[1754181900874,13.12292243,159.23,159.19,147.3]
[1754181901060,13.12292243,159.23,159.19,147.99]
[1754181901265,13.12292243,159.22,159.19,147.3]
[1754181901447,13.12292243,159.24,159.2,0.69]
[1754181901649,0.03,159.31,159.23,39.12292243]
[1754181901945,0.03,159.31,159.27,13.12292243]
[1754181902131,0.03,159.31,159.28,62.92292243]
[1754181902334,0.03,159.31,159.29,0.62778579]
[1754181902529,0.03,159.31,159.29,14.44070822]
[1754181902766,0.03,159.31,159.29,13.75070822]
[1754181903071,0.03,159.31,159.3,13.81292243]
[1754181903576,0.03,159.31,159.3,16.89834482]
[1754181904355,0.03,159.31,159.3,17.52609121]
[1754181905457,0.03,159.31,159.3,40.58823908]
[1754181905658,0.03,159.33,159.32,42.78468397]
[1754181905861,0.12954444,159.35,159.33,16.78468397]
[1754181906045,0.11658999,159.35,159.34,13.75051123]
[1754181906247,0.11658999,159.35,159.34,31.1251952]
[1754181907462,0.11658999,159.35,159.34,37.40108323]
[1754181909473,0.11658999,159.35,159.34,30.5351952]
[1754181909646,0.11658999,159.35,159.34,50.3475888]
[1754181909851,0.11658999,159.35,159.34,52.23517]
[1754181909852,13.92951242,159.35,159.34,52.23517]
[1754181910052,13.92951242,159.35,159.34,49.72]
[1754181910289,0.80658999,159.35,159.34,49.72]
[1754181910470,0.14658999,159.35,159.34,49.72]
[1754181910637,0.14658999,159.35,159.34,63.47051123]
[1754181910837,0.14658999,159.35,159.34,64.16051123]
[1754181911034,0.10493099,159.39,159.38,16.78468397]
[1754181911237,0.52465495,159.39,159.38,63.47035372]
[1754181911440,0.52465495,159.39,159.38,89.47035372]
[1754181911639,0.52465495,159.39,159.38,88.82292243]
[1754181912039,0.52465495,159.39,159.38,105.6076064]
[1754181912248,0.52465495,159.39,159.38,111.88191936]
[1754181912460,2.513905,159.57,159.42,42.78468397]
[1754181912686,13.12292243,159.53,159.48,13.12292243]
[1754181912886,13.12292243,159.53,159.48,62.82292243]
[1754181913562,13.12292243,159.58,159.48,50.32703787]
[1754181913743,12.66592243,159.53,159.48,26.0]
[1754181914069,13.12292243,159.52,159.48,49.7]
[1754181914287,13.12292243,159.51,159.48,49.7]
[1754181914438,13.12292243,159.49,159.47,13.122922]
[1754181914643,13.12292243,159.48,159.47,62.802922]
[1754181915659,5.78226655,159.54,159.47,62.802922]
[1754181915846,13.12292243,159.48,159.47,62.802922]
[1754181916865,13.12292243,159.48,159.47,49.68]
[1754181917382,13.12292243,159.48,159.47,49.66]
[1754181917876,13.12292243,159.49,159.47,49.66]
[1754181918246,13.12292243,159.48,159.47,49.66]
[1754181918458,13.12292243,159.49,159.47,49.66]
[1754181918658,13.12292243,159.48,159.47,49.66]
[1754181919068,13.12292243,159.49,159.47,49.66]
[1754181919475,13.12292243,159.48,159.4,13.12292243]
[1754181919680,13.12292243,159.44,159.41,68.516658]
[1754181919845,10.0,159.53,159.41,68.516658]
[1754181920049,13.12292243,159.49,159.43,13.12292243]
[1754181920267,13.12292243,159.49,159.44,49.66]
[1754181921180,13.12292243,159.48,159.44,49.66]
[1754181921354,13.12292243,159.45,159.41,18.856658]
[1754181921550,10.0,159.52,159.42,49.64]
[1754181921752,13.12292243,159.5,159.45,13.12292243]
[1754181921975,13.12292243,159.5,159.46,49.64]
[1754181922380,5.78226655,159.54,159.47,13.12292243]
[1754181922381,13.12292243,159.52,159.47,13.12292243]
[1754181922556,13.12292243,159.52,159.46,62.76292243]
[1754181922862,18.90518898,159.54,159.48,13.12292243]
[1754181923061,18.90518898,159.54,159.44,26.62719518]
[1754181923062,13.12292243,159.53,159.49,49.64]
[1754181923781,13.12292243,159.5,159.49,49.64]
[1754181925287,13.12292243,159.51,159.49,49.64]
[1754181925790,13.12292243,159.52,159.49,49.64]
[1754181925992,13.12292243,159.51,159.46,26.0]
[1754181926150,13.12292243,159.5,159.47,49.62]
[1754181926356,13.12292243,159.51,159.47,49.62]
[1754181926560,13.12292243,159.53,159.48,13.12292243]
[1754181926806,13.12292243,159.53,159.47,49.62]
[1754181926985,13.12292243,159.5,159.48,49.62]
[1754181927188,13.12292243,159.49,159.43,13.122923]
[1754181927492,15.78226655,159.54,159.44,49.62]
[1754181927655,13.12292243,159.49,159.44,62.74292243]
[1754181927858,13.12292243,159.49,159.44,49.62]
[1754181928179,13.12292243,159.5,159.45,13.12292243]
[1754181928493,13.12292243,159.49,159.44,62.74292243]
[1754181928680,13.12292243,159.48,159.44,49.62]
[1754181928870,13.12292243,159.46,159.45,49.62]
[1754181929985,10.0,159.49,159.43,49.62]
[1754181930197,13.12292243,159.44,159.32,45.28]
[1754181930371,13.12292243,159.34,159.32,45.28]
[1754181930602,42.78468397,159.47,159.32,45.28]
[1754181930603,13.12292243,159.33,159.32,45.28]
[1754181930902,13.12292243,159.33,159.32,49.6]
[1754181931672,13.12292243,159.33,159.27,49.6]
[1754181931894,13.12292243,159.28,159.2,45.22]
[1754181932093,10.0,159.37,159.21,49.6]
[1754181932094,13.12292243,159.24,159.21,49.6]
[1754181932303,13.12292243,159.22,159.21,49.6]
[1754181933891,13.12292243,159.22,159.18,49.62]
[1754181934094,13.12292243,159.19,159.16,0.2]
[1754181934324,13.12292243,159.17,159.16,0.2]
[1754181936198,13.12292243,159.19,159.16,0.2]
[1754181936507,13.12292243,159.17,159.16,0.2]
[1754181937208,23.12292243,159.17,159.16,0.2]
[1754181937389,23.12292243,159.17,159.15,0.06]
[1754181937589,13.12292243,159.16,159.14,0.06]
[1754181937794,36.24584486,159.15,159.09,49.64]
[1754181937998,13.12292243,159.1,159.09,49.64]
[1754181938411,23.12292243,159.1,159.01,0.2]
[1754181938611,10.0,159.13,159.02,49.66]
[1754181938814,13.12292243,159.09,159.04,13.12292243]
[1754181939895,13.12292243,159.09,159.02,49.66]
[1754181940398,13.12292243,159.08,159.02,49.66]
[1754181940618,10.0,159.16,159.06,13.12292243]
[1754181940825,13.12292243,159.11,159.07,49.66]
[1754181940997,13.12292243,159.1,159.07,49.66]
[1754181941194,10.0,159.16,159.07,49.72]
[1754181941524,13.12292243,159.1,159.07,49.72]
[1754181941707,13.12292243,159.08,159.07,49.72]
[1754181942407,13.12292243,159.09,159.07,49.72]
[1754181942728,13.12292243,159.11,159.07,49.72]
[1754181943202,13.12292243,159.09,159.07,49.72]
[1754181943395,13.12292243,159.08,159.07,49.72]
[1754181944422,13.12292243,159.1,159.07,49.72]
[1754181944926,10.0,159.17,159.07,49.72]
[1754181945106,13.12292243,159.1,159.07,49.72]
[1754181945311,13.12292243,159.09,159.07,49.72]
[1754181946219,10.0,159.19,159.08,13.12292243]
[1754181946418,13.12292243,159.11,159.07,49.72]
[1754181946619,10.0,159.17,159.07,49.72]
[1754181946807,13.12292243,159.12,159.07,49.72]
[1754181947132,35.68053597,159.21,159.09,13.12292243]
[1754181947133,13.12292243,159.14,159.09,13.12292243]
[1754181948408,13.12292243,159.14,159.07,49.72]
[1754181948409,18.894662,159.21,159.1,13.12292243]
[1754181948608,23.12292243,159.25,159.12,13.12292243]
[1754181948609,13.12292243,159.17,159.12,13.12292243]
[1754181948818,13.12292243,159.17,159.07,75.72]
[1754181948819,13.12292243,159.18,159.13,62.78292243]
[1754181949001,23.12292243,159.25,159.1,26.0]
[1754181949002,13.12292243,159.19,159.14,62.78292243]
[1754181949202,13.12292243,159.2,159.15,13.12292243]
[1754181949416,16.78468397,159.28,159.14,49.66]
[1754181949417,13.12292243,159.16,159.14,49.66]
[1754181949732,13.12292243,159.15,159.14,49.66]
[1754181950135,10.0,159.21,159.14,49.66]
[1754181950344,13.12292243,159.15,159.14,49.66]
[1754181950628,13.12292243,159.15,159.07,0.06]
[1754181950800,13.12292243,159.08,159.07,0.06]
[1754181951520,13.12292243,159.08,159.01,49.86]
[1754181951720,13.12292243,159.02,159.01,49.86]
[1754181951921,10.0,159.09,159.01,49.86]
[1754181952229,13.12292243,159.02,159.01,49.86]
[1754181953503,10.0,159.09,159.01,49.86]
[1754181953834,13.12292243,159.03,159.01,49.86]
[1754181954042,39.12292243,159.12,159.01,49.86]
[1754181954335,13.12292243,159.04,159.01,49.86]
[1754181954531,13.12292243,159.05,159.01,49.86]
[1754181954729,10.0,159.13,159.01,62.98292243]
[1754181954935,13.12292243,159.08,159.03,13.12292243]
[1754181955323,16.78468397,159.17,159.04,13.12292243]
[1754181955324,13.12292243,159.09,159.04,13.12292243]
[1754181955638,0.03,159.14,159.07,13.12292243]
[1754181955807,13.12292243,159.12,159.08,49.66]
[1754181956138,13.12292243,159.13,159.08,62.78292243]
[1754181956306,13.12292243,159.12,159.08,49.66]
[1754181957018,0.03,159.14,159.08,62.78292243]
[1754181957019,13.12292243,159.13,159.08,62.78292243]
[1754181957524,13.12292243,159.12,159.08,49.66]
[1754181957740,13.12292243,159.13,159.08,49.66]
[1754181958121,0.03,159.14,159.04,13.12292243]
[1754181958349,13.12292243,159.08,159.05,49.66]
[1754181958832,13.12292243,159.09,159.05,49.66]
[1754181959003,13.12292243,159.08,159.05,49.66]
[1754181959612,13.12292243,159.06,159.05,49.66]
[1754181960214,13.12292243,159.07,159.05,49.66]
[1754181960408,13.12292243,159.07,159.01,26.2]
[1754181960409,13.12292243,159.06,159.01,0.2]
[1754181960636,23.12292243,159.12,159.04,49.66]
[1754181960637,13.12292243,159.05,159.04,49.66]
[1754181960821,0.03,159.14,159.04,49.66]
[1754181961146,13.12292243,159.06,159.04,49.66]
[1754181961349,13.12292243,159.05,159.04,49.66]
[1754181961511,0.03,159.14,159.04,49.66]
[1754181961712,13.12292243,159.08,159.04,49.66]
[1754181962229,13.12292243,159.05,159.04,49.66]
[1754181963814,23.12292243,159.12,159.04,49.66]
[1754181964041,13.12292243,159.05,159.04,49.66]
[1754181964227,13.12292243,159.05,159.02,0.06]
[1754181964427,13.12292243,159.03,159.02,0.06]
[1754181965155,23.12292243,159.03,159.02,0.06]
[1754181965369,26.0,159.05,159.01,0.2]
[1754181965370,36.0,159.05,159.01,0.2]
[1754181965569,13.12292243,159.02,159.01,0.2]
[1754181965726,13.12292243,159.05,159.01,0.2]
[1754181966071,13.12292243,159.08,159.02,13.12292243]
[1754181966223,13.12292243,159.08,159.01,0.2]
[1754181966224,13.12292243,159.08,159.03,13.12292243]
[1754181966429,13.12292243,159.08,159.02,13.12292243]
[1754181966624,26.03,159.14,159.02,13.12292243]
[1754181966923,13.12292243,159.09,159.03,13.12292243]
[1754181967129,13.12292243,159.08,159.03,13.12292243]
[1754181967726,0.03,159.14,159.03,26.0]
[1754181968057,13.12292243,159.11,159.05,13.12292243]
[1754181968259,13.15292243,159.14,159.06,49.66]
[1754181968437,13.12292243,159.11,159.06,62.78292243]
[1754181968757,13.12292243,159.13,159.08,13.12292243]
[1754181969343,0.03,159.14,159.08,13.12292243]
[1754181969665,13.15292243,159.14,159.08,13.12292243]
[1754181969879,0.03,159.14,159.06,75.66]
[1754181970158,0.03,159.14,159.1,13.12292243]
[1754181970460,0.03,159.14,159.12,13.12292243]
[1754181970760,13.12292243,159.22,159.17,13.12292243]
[1754181970960,13.12292243,159.24,159.18,62.76292243]
[1754181971263,13.12292243,159.24,159.19,13.12292243]
[1754181971645,13.12292243,159.25,159.19,13.12292243]
[1754181971843,26.0,159.32,159.18,49.64]
[1754181972048,115.09594772,159.38,159.18,49.64]
[1754181972049,13.12292243,159.28,159.22,13.12292243]
[1754181972362,13.12292243,159.28,159.23,62.76292243]
[1754181972663,13.12292243,159.29,159.24,13.12292243]
[1754181972841,13.22292243,159.3,159.24,13.12292243]
[1754181973043,0.1,159.3,159.25,13.12292243]
[1754181973273,13.22292243,159.3,159.23,49.64]
[1754181973432,13.22292243,159.3,159.24,13.12292243]
[1754181973765,0.1,159.3,159.25,13.12292243]
[1754181974063,0.1,159.3,159.23,49.64]
[1754181974064,13.22292243,159.3,159.24,13.12292243]
[1754181974260,0.1,159.3,159.25,13.12292243]
[1754181974637,0.1,159.3,159.28,13.12292243]
[1754181974844,0.1,159.3,159.29,49.62]
[1754181975628,0.1,159.3,159.29,62.74292243]
[1754181976074,0.1,159.3,159.29,49.62]
[1754181976430,13.22292243,159.3,159.29,49.62]
[1754181976638,0.1,159.3,159.29,49.62]
[1754181977373,0.1,159.3,159.29,62.74292243]
[1754181977740,0.1,159.3,159.29,49.62]
[1754181977937,0.1,159.3,159.29,62.74292243]
[1754181978139,0.1,159.3,159.29,49.62]
[1754181978566,0.1,159.3,159.29,62.74292243]
[1754181978743,0.1,159.3,159.29,49.62]
[1754181978945,0.1,159.3,159.29,62.74292243]
[1754181980783,0.04000006,159.39,159.29,62.74292243]
[1754181980948,0.04000006,159.39,159.32,26.0]
[1754181981145,0.04000006,159.39,159.37,13.12292243]
[1754181981344,13.16292249,159.39,159.38,49.58]
[1754181981853,0.04000006,159.39,159.38,49.58]
[1754181982040,13.16292249,159.39,159.38,49.58]
[1754181982476,13.16292249,159.39,159.3,26.0]
[1754181982674,13.16292249,159.39,159.31,49.58]
[1754181982675,13.12292243,159.36,159.31,49.58]
[1754181983476,13.12292243,159.37,159.31,62.70292243]
[1754181983644,0.04000006,159.39,159.33,13.12292243]
[1754181983845,13.12292243,159.38,159.31,49.58]
[1754181984057,13.12292243,159.38,159.33,13.12292243]
[1754181984255,0.04000006,159.39,159.34,13.12292243]
[1754181984459,0.04000006,159.39,159.35,49.56]
[1754181984677,13.16292249,159.39,159.35,49.56]
[1754181985183,13.12292243,159.37,159.35,49.56]
[1754181985346,13.16292249,159.39,159.35,49.56]
[1754181985678,0.03,159.37,159.35,49.56]
[1754181986061,13.15292243,159.37,159.35,49.56]
[1754181986391,13.81292243,159.36,159.26,0.72]
[1754181986554,13.12292243,159.3,159.27,49.56]
[1754181986971,13.12292243,159.28,159.27,49.56]
[1754181987565,13.12292243,159.3,159.27,50.28]
[1754181987870,13.12292243,159.32,159.28,0.72]
[1754181988080,13.12292243,159.35,159.3,13.12292243]
[1754181988269,13.12292243,159.35,159.31,49.54]
[1754181988468,13.15292243,159.37,159.32,13.84292243]
[1754181988676,13.15292243,159.37,159.31,49.54]
[1754181988677,0.03,159.37,159.33,13.84292243]
[1754181988868,0.03,159.37,159.34,0.72]
[1754181989067,0.03,159.37,159.35,49.54]
[1754181989271,0.03,159.37,159.35,63.38292243]
[1754181989455,0.03,159.37,159.35,62.66292243]
[1754181989660,0.03,159.37,159.36,0.72]
[1754181989855,0.03,159.37,159.35,49.54]
[1754181990067,0.72,159.37,159.3,13.12292243]
[1754181990300,13.12292243,159.36,159.31,62.66292243]
[1754181990578,13.15292243,159.37,159.32,13.84292243]
[1754181990983,13.12292243,159.36,159.32,0.72]
[1754181991169,13.12292243,159.36,159.31,62.66292243]
[1754181991362,0.03,159.37,159.31,49.54]
[1754181991566,0.03,159.37,159.34,13.12292243]
[1754181991751,0.03,159.37,159.32,0.72]
[1754181991752,0.03,159.37,159.35,49.52]
[1754181991950,0.03,159.37,159.36,49.52]
[1754181992259,13.15292243,159.37,159.36,49.52]
[1754181992453,13.15292243,159.37,159.26,13.84292243]
[1754181992673,13.12292243,159.31,159.27,49.52]
[1754181992877,13.12292243,159.31,159.27,50.24]
[1754181993088,13.12292243,159.3,159.27,49.52]
[1754181993581,13.12292243,159.31,159.27,49.52]
[1754181993776,13.12292243,159.33,159.28,0.72]
[1754181993979,13.12292243,159.35,159.29,13.84292243]
[1754181994176,13.16292249,159.34,159.29,0.72]
[1754181994360,13.16292249,159.34,159.27,49.52]
[1754181994361,13.12292243,159.32,159.27,49.52]
[1754181994561,13.12292243,159.32,159.28,0.72]
[1754181994855,13.12292243,159.32,159.27,62.64292243]
[1754181995383,0.04000006,159.34,159.33,26.0]
[1754181995564,0.04000006,159.34,159.33,63.27055062]
[1754181995767,0.03,159.37,159.33,63.27055062]
[1754181995768,0.03,159.37,159.33,80.77523459]
[1754181995967,0.03,159.37,159.36,13.12292243]
[1754181996463,0.03,159.37,159.36,13.84292243]
[1754181996666,0.67,159.51,159.36,30.6276064]
[1754181996890,13.12292243,159.47,159.41,13.12292243]
[1754181997176,13.12292243,159.47,159.42,49.52]
[1754181997349,13.12292243,159.44,159.38,26.7]
[1754181997551,13.12292243,159.43,159.39,49.52]
[1754181998710,0.67,159.5,159.41,13.12292243]
[1754181998995,13.12292243,159.48,159.42,13.12292243]
[1754181999204,0.67,159.5,159.43,49.5]
[1754181999403,13.12292243,159.48,159.43,62.62292243]
[1754181999559,13.12292243,159.48,159.43,49.5]
[1754181999762,13.12292243,159.48,159.43,50.2]
[1754182000480,13.12292243,159.46,159.43,49.5]
[1754182000881,0.03,159.53,159.43,49.5]
[1754182001069,13.12292243,159.44,159.43,49.5]
[1754182001475,0.67,159.47,159.43,49.5]
[1754182001476,13.12292243,159.47,159.43,49.5]
[1754182002304,13.12292243,159.46,159.43,49.5]
[1754182002481,13.79292243,159.46,159.43,49.5]
[1754182002667,13.12292243,159.46,159.43,49.5]
[1754182003088,0.67,159.5,159.43,50.2]
[1754182003089,13.12292243,159.47,159.43,50.2]
[1754182003396,13.12292243,159.47,159.43,49.5]
[1754182003563,13.12292243,159.45,159.43,49.5]
[1754182003991,13.79292243,159.44,159.36,0.7]
[1754182004167,16.78468397,159.49,159.37,49.48]
[1754182004364,13.12292243,159.38,159.37,49.48]
[1754182004771,13.79292243,159.38,159.29,45.26]
[1754182004972,13.12292243,159.3,159.29,45.26]
[1754182005178,13.12292243,159.31,159.29,94.72]
[1754182006565,13.12292243,159.34,159.3,0.7]
[1754182006766,0.67,159.39,159.31,0.7]
[1754182006979,13.12292243,159.36,159.31,0.7]
[1754182007211,13.12292243,159.35,159.31,0.7]
[1754182007707,13.12292243,159.36,159.32,0.7]
[1754182008008,13.12292243,159.37,159.33,49.48]
[1754182008575,0.03,159.39,159.34,0.7]
[1754182008904,0.03,159.39,159.35,0.7]
[1754182009371,0.03,159.39,159.36,39.82292243]
[1754182009570,0.03,159.39,159.37,49.46]
[1754182009771,0.03,159.39,159.37,50.16]
[1754182009985,0.03,159.39,159.37,63.28292243]
[1754182010276,0.03,159.39,159.38,13.82292243]
[1754182012178,0.03,159.39,159.38,31.23503769]
[1754182012380,0.03,159.39,159.38,44.35796012]
[1754182012598,4.84935316,159.53,159.41,26.0]
[1754182012784,13.12292243,159.51,159.42,75.46]
[1754182012987,13.12292243,159.52,159.47,13.12292243]
[1754182013199,13.12292243,159.52,159.48,49.46]
[1754182013399,13.79292243,159.52,159.48,49.46]
[1754182014109,5.78226655,159.54,159.48,50.16]
[1754182014423,13.12292243,159.53,159.48,89.28292243]
[1754182014705,13.12292243,159.53,159.48,76.16]
[1754182015079,13.12292243,159.53,159.48,89.28292243]
[1754182015714,5.78226655,159.54,159.48,75.46]
[1754182015715,13.12292243,159.52,159.48,75.46]
[1754182016079,13.12292243,159.53,159.48,75.46]
[1754182016325,13.79292243,159.52,159.48,26.0]
[1754182016486,13.12292243,159.5,159.49,49.44]
[1754182016680,6.45226655,159.54,159.49,49.44]
[1754182016880,13.12292243,159.5,159.49,49.44]
[1754182017483,13.79292243,159.5,159.49,49.44]
[1754182017682,13.12292243,159.5,159.49,49.44]
[1754182017918,13.79292243,159.5,159.42,0.04]
[1754182018110,13.12292243,159.43,159.42,49.46]
[1754182018308,13.79292243,159.43,159.42,49.46]
[1754182019195,13.12292243,159.44,159.42,49.46]
[1754182019695,13.12292243,159.45,159.42,49.46]
[1754182020118,13.12292243,159.46,159.42,50.16]
[1754182020308,13.12292243,159.45,159.42,49.46]
[1754182020509,0.67,159.5,159.42,50.16]
[1754182020718,13.12292243,159.48,159.43,0.7]
[1754182020921,13.12292243,159.44,159.42,0.04]
[1754182021230,0.67,159.47,159.43,49.42]
[1754182021540,0.67,159.46,159.43,49.42]
[1754182021829,0.67,159.45,159.43,49.42]
[1754182022192,0.67,159.48,159.43,49.42]
[1754182022399,13.12292243,159.46,159.43,49.42]
[1754182023022,13.12292243,159.45,159.43,49.42]
[1754182023226,13.79292243,159.44,159.42,0.04]
[1754182023439,13.79292243,159.43,159.42,0.04]
[1754182023735,13.12292243,159.43,159.42,0.04]
[1754182024339,0.67,159.46,159.42,0.04]
[1754182024513,13.12292243,159.45,159.43,49.4]
[1754182024703,0.67,159.49,159.43,49.4]
[1754182024905,13.12292243,159.46,159.43,49.4]
[1754182025232,13.12292243,159.5,159.44,13.82292243]
[1754182025536,13.12292243,159.48,159.43,88.52292243]
[1754182025717,0.67,159.51,159.44,0.7]
[1754182025919,0.03,159.53,159.46,26.0]
[1754182026243,0.03,159.53,159.47,49.4]
[1754182026244,0.67,159.52,159.47,49.4]
[1754182026398,13.12292243,159.48,159.47,49.4]
[1754182028132,13.12292243,159.49,159.47,49.4]
[1754182028744,13.84292243,159.48,159.42,0.04]
[1754182028934,13.12292243,159.43,159.42,49.44]
[1754182029507,0.03,159.47,159.42,49.44]
[1754182029508,13.12292243,159.45,159.42,49.44]
[1754182029930,0.03,159.47,159.43,0.72]
[1754182030097,13.12292243,159.46,159.42,75.44]
[1754182030911,13.12292243,159.43,159.42,0.04]
[1754182031118,13.12292243,159.43,159.42,49.42]
[1754182031515,13.84292243,159.43,159.42,49.42]
[1754182032418,13.12292243,159.43,159.42,49.42]
[1754182032925,13.84292243,159.43,159.42,0.04]
[1754182033226,13.84292243,159.43,159.3,13.84292243]
[1754182033408,13.12292243,159.35,159.31,49.38]
[1754182033603,13.12292243,159.34,159.31,75.38]
[1754182033808,13.12292243,159.35,159.31,76.1]
[1754182034008,13.12292243,159.34,159.31,50.1]